[Event "Titled Tuesday Blitz October 31 Early 2023"]
[White "Atakhan, Abtin"]
[Black "Alinasab, Mobina"]
[WhiteFideId "22502203"]
[BlackFideId "12528897"]
[WhiteElo "2692"]
[BlackElo "2533"]
[Result "1-0"]
[Round "8"]
[TimeControl "180+1"]
[Date "2023.10.31"]
[WhiteClock "0:00:15"]
[BlackClock "0:00:00"]
[Board "55"]

1. Nf3 {[%clk 0:03:00]}  Nf6 {[%clk 0:02:58]} 2. d4 {[%clk 0:03:01]}  e6 {[%clk 0:02:57]} 3. c4 {[%clk 0:03:01]}  b6 {[%clk 0:02:56]} 4. g3 {[%clk 0:03:01]}  Bb7 {[%clk 0:02:56]} 5. Bg2 {[%clk 0:03:02]}  Be7 {[%clk 0:02:23]} 6. O-O {[%clk 0:03:02]}  O-O {[%clk 0:02:04]} 7. Re1 {[%clk 0:03:02]}  d5 {[%clk 0:02:03]} 8. cxd5 {[%clk 0:03:02]}  exd5 {[%clk 0:02:02]} 9. Bf4 {[%clk 0:03:02]}  c5 {[%clk 0:01:58]} 10. Nc3 {[%clk 0:03:02]}  Na6 {[%clk 0:01:56]} 11. Qa4 {[%clk 0:02:56]}  Nc7 {[%clk 0:01:56]} 12. Ne5 {[%clk 0:02:53]}  Ne6 {[%clk 0:01:50]} 13. Be3 {[%clk 0:02:15]}  cxd4 {[%clk 0:01:31]} 14. Bxd4 {[%clk 0:02:15]}  Nxd4 {[%clk 0:01:31]} 15. Qxd4 {[%clk 0:02:16]}  Bc5 {[%clk 0:01:32]} 16. Qd3 {[%clk 0:02:13]}  Qe7 {[%clk 0:01:26]} 17. Nf3 {[%clk 0:02:00]}  Ne4 {[%clk 0:01:25]} 18. e3 {[%clk 0:01:55]}  Nxc3 {[%clk 0:01:24]} 19. bxc3 {[%clk 0:01:54]}  Rfd8 {[%clk 0:01:19]} 20. Nd4 {[%clk 0:01:54]}  Qf6 {[%clk 0:01:15]} 21. a4 {[%clk 0:01:53]}  a5 {[%clk 0:01:09]} 22. Qd1 {[%clk 0:01:40]}  g6 {[%clk 0:01:05]} 23. Qb3 {[%clk 0:01:39]}  h5 {[%clk 0:01:03]} 24. h4 {[%clk 0:01:38]}  g5 {[%clk 0:00:59]} 25. hxg5 {[%clk 0:01:38]}  Qxg5 {[%clk 0:01:00]} 26. Rad1 {[%clk 0:01:38]}  Qf6 {[%clk 0:00:53]} 27. Nb5 {[%clk 0:01:22]}  Qe5 {[%clk 0:00:47]} 28. Qb1 {[%clk 0:01:12]}  Kg7 {[%clk 0:00:46]} 29. c4 {[%clk 0:01:11]}  Bb4 {[%clk 0:00:42]} 30. Rf1 {[%clk 0:01:07]}  Rac8 {[%clk 0:00:39]} 31. cxd5 {[%clk 0:00:57]}  Bxd5 {[%clk 0:00:33]} 32. Bxd5 {[%clk 0:00:50]}  Rxd5 {[%clk 0:00:34]} 33. Rxd5 {[%clk 0:00:50]}  Qxd5 {[%clk 0:00:35]} 34. Nd4 {[%clk 0:00:50]}  Rc5 {[%clk 0:00:33]} 35. Rd1 {[%clk 0:00:39]}  h4 {[%clk 0:00:33]} 36. g4 {[%clk 0:00:38]}  h3 {[%clk 0:00:32]} 37. Nf5+ {[%clk 0:00:37]}  Kf6 {[%clk 0:00:30]} 38. Rxd5 {[%clk 0:00:36]}  Rxd5 {[%clk 0:00:29]} 39. Kh2 {[%clk 0:00:34]}  Rd2 {[%clk 0:00:27]} 40. Qa1+ {[%clk 0:00:33]}  Ke6 {[%clk 0:00:25]} 41. Kxh3 {[%clk 0:00:33]}  Rxf2 {[%clk 0:00:21]} 42. Qd4 {[%clk 0:00:33]}  Bc5 {[%clk 0:00:20]} 43. Qe4+ {[%clk 0:00:28]}  Kf6 {[%clk 0:00:19]} 44. g5+ {[%clk 0:00:27]}  Kg6 {[%clk 0:00:07]} 45. Kg4 {[%clk 0:00:19]}  Rb2 {[%clk 0:00:04]} 46. Ng3+ {[%clk 0:00:15]}  Kg7 {[%clk 0:00:00]} 47. Qe5+ {[%clk 0:00:15]} 1-0


[Site "https://www.chess.com"]

[Event "Titled Tuesday Blitz October 31 Early 2023"]
[White "Preotu, Razvan"]
[Black "Purtseladze, Maka"]
[WhiteFideId "2613280"]
[BlackFideId "13602659"]
[WhiteElo "2692"]
[BlackElo "2524"]
[Result "1-0"]
[Round "8"]
[TimeControl "180+1"]
[Date "2023.10.31"]
[WhiteClock "0:00:03"]
[BlackClock "0:00:00"]
[Board "56"]

1. e4 {[%clk 0:03:00]}  c6 {[%clk 0:02:46]} 2. Nc3 {[%clk 0:02:59]}  d5 {[%clk 0:02:47]} 3. Nf3 {[%clk 0:03:00]}  dxe4 {[%clk 0:02:47]} 4. Nxe4 {[%clk 0:03:01]}  Nf6 {[%clk 0:02:46]} 5. Qe2 {[%clk 0:03:01]}  Nxe4 {[%clk 0:02:46]} 6. Qxe4 {[%clk 0:03:02]}  Qd5 {[%clk 0:02:47]} 7. Qh4 {[%clk 0:03:02]}  Qe6+ {[%clk 0:02:47]} 8. Be2 {[%clk 0:03:02]}  Qg4 {[%clk 0:02:48]} 9. Qg3 {[%clk 0:03:02]}  Qxg3 {[%clk 0:02:43]} 10. hxg3 {[%clk 0:03:03]}  g6 {[%clk 0:02:43]} 11. Bc4 {[%clk 0:03:00]}  Nd7 {[%clk 0:02:36]} 12. Ng5 {[%clk 0:02:33]}  Ne5 {[%clk 0:02:32]} 13. Bb3 {[%clk 0:02:33]}  h6 {[%clk 0:02:02]} 14. d4 {[%clk 0:02:21]}  Bg7 {[%clk 0:02:02]} 15. dxe5 {[%clk 0:01:40]}  hxg5 {[%clk 0:02:01]} 16. Rxh8+ {[%clk 0:01:41]}  Bxh8 {[%clk 0:02:02]} 17. Bxg5 {[%clk 0:01:29]}  Bxe5 {[%clk 0:02:01]} 18. O-O-O {[%clk 0:01:29]}  a5 {[%clk 0:00:44]} 19. a4 {[%clk 0:01:10]}  b5 {[%clk 0:00:21]} 20. Re1 {[%clk 0:01:09]}  Bd6 {[%clk 0:00:20]} 21. Rh1 {[%clk 0:00:54]}  f6 {[%clk 0:00:13]} 22. Be3 {[%clk 0:00:35]}  Kd7 {[%clk 0:00:14]} 23. f4 {[%clk 0:00:24]}  Bb7 {[%clk 0:00:11]} 24. Rh6 {[%clk 0:00:24]}  bxa4 {[%clk 0:00:10]} 25. Bxa4 {[%clk 0:00:23]}  Rg8 {[%clk 0:00:09]} 26. g4 {[%clk 0:00:11]}  Kc7 {[%clk 0:00:07]} 27. Kd2 {[%clk 0:00:11]}  c5 {[%clk 0:00:06]} 28. g3 {[%clk 0:00:12]}  Bf3 {[%clk 0:00:06]} 29. Bb3 {[%clk 0:00:09]}  Rg7 {[%clk 0:00:05]} 30. Be6 {[%clk 0:00:10]}  f5 {[%clk 0:00:03]} 31. g5 {[%clk 0:00:06]}  Bc6 {[%clk 0:00:03]} 32. Rh8 {[%clk 0:00:04]}  Bd7 {[%clk 0:00:03]} 33. Bxd7 {[%clk 0:00:04]}  Kxd7 {[%clk 0:00:04]} 34. Ra8 {[%clk 0:00:04]}  Bc7 {[%clk 0:00:04]} 35. Ra7 {[%clk 0:00:04]}  Kc6 {[%clk 0:00:04]} 36. Bxc5 {[%clk 0:00:04]}  e5 {[%clk 0:00:04]} 37. Be3 {[%clk 0:00:03]}  exf4 {[%clk 0:00:04]} 38. gxf4 {[%clk 0:00:04]}  Bb6 {[%clk 0:00:00]} 39. Rxg7 {[%clk 0:00:03]} 1-0


[Site "https://www.chess.com"]

[Event "Titled Tuesday Blitz October 31 Early 2023"]
[White "Mendez Fortes, Eduardo Jesus"]
[Black "Demin, Vladimir"]
[WhiteFideId "3502376"]
[BlackFideId "4167457"]
[WhiteElo "2679"]
[BlackElo "2523"]
[Result "1/2-1/2"]
[Round "8"]
[TimeControl "180+1"]
[Date "2023.10.31"]
[WhiteClock "0:00:08"]
[BlackClock "0:00:07"]
[Board "57"]

1. e4 {[%clk 0:03:00]}  e5 {[%clk 0:03:00]} 2. Nf3 {[%clk 0:03:01]}  Nc6 {[%clk 0:03:00]} 3. Bb5 {[%clk 0:03:01]}  a6 {[%clk 0:03:00]} 4. Ba4 {[%clk 0:03:02]}  Bc5 {[%clk 0:03:01]} 5. O-O {[%clk 0:03:01]}  Nge7 {[%clk 0:03:01]} 6. c3 {[%clk 0:03:01]}  Ba7 {[%clk 0:03:01]} 7. d4 {[%clk 0:03:01]}  Ng6 {[%clk 0:03:02]} 8. Be3 {[%clk 0:02:58]}  O-O {[%clk 0:03:01]} 9. h3 {[%clk 0:02:57]}  d6 {[%clk 0:02:59]} 10. Re1 {[%clk 0:02:49]}  h6 {[%clk 0:02:51]} 11. Nbd2 {[%clk 0:02:43]}  Nce7 {[%clk 0:02:50]} 12. Bb3 {[%clk 0:02:40]}  Kh8 {[%clk 0:02:49]} 13. Nf1 {[%clk 0:02:39]}  f5 {[%clk 0:02:38]} 14. dxe5 {[%clk 0:02:33]}  Bxe3 {[%clk 0:02:37]} 15. Nxe3 {[%clk 0:02:32]}  fxe4 {[%clk 0:02:36]} 16. exd6 {[%clk 0:02:32]}  cxd6 {[%clk 0:02:04]} 17. Nd4 {[%clk 0:02:28]}  d5 {[%clk 0:02:04]} 18. c4 {[%clk 0:02:28]}  Nf4 {[%clk 0:01:36]} 19. cxd5 {[%clk 0:02:25]}  Nexd5 {[%clk 0:01:17]} 20. Nxd5 {[%clk 0:02:23]}  Nxd5 {[%clk 0:01:16]} 21. Nc2 {[%clk 0:02:23]}  Nf6 {[%clk 0:01:13]} 22. Ne3 {[%clk 0:02:20]}  Qe8 {[%clk 0:01:09]} 23. Qd6 {[%clk 0:02:16]}  Bd7 {[%clk 0:01:03]} 24. Rac1 {[%clk 0:02:16]}  Qg6 {[%clk 0:01:00]} 25. Qg3 {[%clk 0:02:03]}  Qxg3 {[%clk 0:00:59]} 26. fxg3 {[%clk 0:02:04]}  Bc6 {[%clk 0:00:58]} 27. g4 {[%clk 0:02:03]}  Rad8 {[%clk 0:00:58]} 28. Rc2 {[%clk 0:02:01]}  g6 {[%clk 0:00:52]} 29. Rf2 {[%clk 0:02:00]}  Kg7 {[%clk 0:00:51]} 30. Ref1 {[%clk 0:02:00]}  Nd7 {[%clk 0:00:43]} 31. Rf7+ {[%clk 0:01:57]}  Rxf7 {[%clk 0:00:40]} 32. Rxf7+ {[%clk 0:01:58]}  Kh8 {[%clk 0:00:40]} 33. g5 {[%clk 0:01:58]}  Ne5 {[%clk 0:00:30]} 34. Re7 {[%clk 0:01:54]}  Re8 {[%clk 0:00:30]} 35. Rxe8+ {[%clk 0:01:39]}  Bxe8 {[%clk 0:00:31]} 36. gxh6 {[%clk 0:01:39]}  Kh7 {[%clk 0:00:31]} 37. Bc2 {[%clk 0:01:27]}  Bc6 {[%clk 0:00:30]} 38. Kf2 {[%clk 0:01:26]}  Kxh6 {[%clk 0:00:30]} 39. g4 {[%clk 0:01:26]}  Nf3 {[%clk 0:00:27]} 40. Kg3 {[%clk 0:01:16]}  Kg5 {[%clk 0:00:25]} 41. Ng2 {[%clk 0:01:10]}  Nd4 {[%clk 0:00:25]} 42. Bd1 {[%clk 0:01:06]}  Kf6 {[%clk 0:00:21]} 43. h4 {[%clk 0:01:06]}  a5 {[%clk 0:00:17]} 44. Kf4 {[%clk 0:01:02]}  Ne6+ {[%clk 0:00:14]} 45. Ke3 {[%clk 0:01:02]}  Ke5 {[%clk 0:00:10]} 46. g5 {[%clk 0:01:00]}  Nd4 {[%clk 0:00:10]} 47. Bg4 {[%clk 0:00:54]}  Nc2+ {[%clk 0:00:09]} 48. Kd2 {[%clk 0:00:51]}  Nd4 {[%clk 0:00:10]} 49. Ne3 {[%clk 0:00:48]}  Kf4 {[%clk 0:00:09]} 50. Bd1 {[%clk 0:00:37]}  Nf3+ {[%clk 0:00:07]} 51. Bxf3 {[%clk 0:00:37]}  exf3 {[%clk 0:00:08]} 52. h5 {[%clk 0:00:24]}  Kxg5 {[%clk 0:00:07]} 53. hxg6 {[%clk 0:00:24]}  Kxg6 {[%clk 0:00:08]} 54. Ng4 {[%clk 0:00:24]}  Kf5 {[%clk 0:00:08]} 55. Nf2 {[%clk 0:00:23]}  Kf4 {[%clk 0:00:08]} 56. a3 {[%clk 0:00:23]}  a4 {[%clk 0:00:08]} 57. Kd3 {[%clk 0:00:23]}  Bd5 {[%clk 0:00:07]} 58. Kd4 {[%clk 0:00:23]}  Bc6 {[%clk 0:00:07]} 59. Nd3+ {[%clk 0:00:23]}  Kg3 {[%clk 0:00:06]} 60. Ke3 {[%clk 0:00:23]}  Bb5 {[%clk 0:00:05]} 61. Nf2 {[%clk 0:00:24]}  Bc6 {[%clk 0:00:05]} 62. Nd3 {[%clk 0:00:23]}  Be8 {[%clk 0:00:05]} 63. Nf2 {[%clk 0:00:19]}  Bg6 {[%clk 0:00:04]} 64. Nd1 {[%clk 0:00:17]}  Bc2 {[%clk 0:00:03]} 65. Nf2 {[%clk 0:00:17]}  Bb3 {[%clk 0:00:01]} 66. Ne4+ {[%clk 0:00:14]}  Kg2 {[%clk 0:00:02]} 67. Nf2 {[%clk 0:00:15]}  Bc2 {[%clk 0:00:02]} 68. Ng4 {[%clk 0:00:13]}  Bf5 {[%clk 0:00:03]} 69. Nf2 {[%clk 0:00:13]}  Be6 {[%clk 0:00:04]} 70. Nd3 {[%clk 0:00:10]}  Bf5 {[%clk 0:00:04]} 71. Nf2 {[%clk 0:00:09]}  Bd7 {[%clk 0:00:04]} 72. Nd1 {[%clk 0:00:09]}  Bc6 {[%clk 0:00:05]} 73. Nf2 {[%clk 0:00:09]}  Kf1 {[%clk 0:00:06]} 74. Ng4 {[%clk 0:00:08]}  Ke1 {[%clk 0:00:06]} 75. Nf2 {[%clk 0:00:07]}  Bd5 {[%clk 0:00:05]} 76. Nd3+ {[%clk 0:00:06]}  Kd1 {[%clk 0:00:05]} 77. Nb4 {[%clk 0:00:05]}  Bc6 {[%clk 0:00:05]} 78. Nd3 {[%clk 0:00:05]}  Kc2 {[%clk 0:00:05]} 79. Kd4 {[%clk 0:00:05]}  Kb3 {[%clk 0:00:05]} 80. Ke3 {[%clk 0:00:06]}  Bb5 {[%clk 0:00:05]} 81. Nc5+ {[%clk 0:00:05]}  Kxb2 {[%clk 0:00:04]} 82. Nxb7 {[%clk 0:00:06]}  Bc6 {[%clk 0:00:04]} 83. Na5 {[%clk 0:00:03]}  Ba8 {[%clk 0:00:03]} 84. Nc4+ {[%clk 0:00:03]}  Kb3 {[%clk 0:00:03]} 85. Nd2+ {[%clk 0:00:03]}  Kxa3 {[%clk 0:00:03]} 86. Kd3 {[%clk 0:00:03]}  Kb4 {[%clk 0:00:03]} 87. Nxf3 {[%clk 0:00:02]}  Bxf3 {[%clk 0:00:02]} 88. Kc2 {[%clk 0:00:02]}  Ka3 {[%clk 0:00:02]} 89. Kb1 {[%clk 0:00:03]}  Be4+ {[%clk 0:00:02]} 90. Ka1 {[%clk 0:00:04]}  Bd5 {[%clk 0:00:03]} 91. Kb1 {[%clk 0:00:04]}  Ba2+ {[%clk 0:00:03]} 92. Ka1 {[%clk 0:00:05]}  Bb3 {[%clk 0:00:04]} 93. Kb1 {[%clk 0:00:06]}  Ba2+ {[%clk 0:00:05]} 94. Ka1 {[%clk 0:00:07]}  Bb3 {[%clk 0:00:06]} 95. Kb1 {[%clk 0:00:08]}  Ba2+ {[%clk 0:00:07]} 1/2-1/2


[Site "https://www.chess.com"]

[Event "Titled Tuesday Blitz October 31 Early 2023"]
[White "Estrada Nieto, Julian"]
[Black "Yen, William"]
[WhiteFideId "5101018"]
[BlackFideId "30932025"]
[WhiteElo "2521"]
[BlackElo "2673"]
[Result "0-1"]
[Round "8"]
[TimeControl "180+1"]
[Date "2023.10.31"]
[WhiteClock "0:00:00"]
[BlackClock "0:00:35"]
[Board "58"]

1. e4 {[%clk 0:03:00]}  c5 {[%clk 0:02:56]} 2. Nf3 {[%clk 0:03:00]}  d6 {[%clk 0:02:57]} 3. Bb5+ {[%clk 0:02:59]}  Nc6 {[%clk 0:02:56]} 4. d4 {[%clk 0:02:58]}  cxd4 {[%clk 0:02:56]} 5. Qxd4 {[%clk 0:02:58]}  Bd7 {[%clk 0:02:55]} 6. Bxc6 {[%clk 0:02:58]}  Bxc6 {[%clk 0:02:55]} 7. Nc3 {[%clk 0:02:59]}  Nf6 {[%clk 0:02:41]} 8. Bg5 {[%clk 0:02:58]}  e6 {[%clk 0:02:39]} 9. O-O-O {[%clk 0:02:58]}  Be7 {[%clk 0:02:39]} 10. Rhe1 {[%clk 0:02:58]}  O-O {[%clk 0:02:38]} 11. Kb1 {[%clk 0:02:58]}  h6 {[%clk 0:02:36]} 12. Bh4 {[%clk 0:02:57]}  Qa5 {[%clk 0:02:31]} 13. Qd2 {[%clk 0:02:56]}  Rfc8 {[%clk 0:02:29]} 14. Nd5 {[%clk 0:02:53]}  Qxd2 {[%clk 0:02:25]} 15. Nxe7+ {[%clk 0:02:53]}  Kf8 {[%clk 0:02:25]} 16. Nxd2 {[%clk 0:02:43]}  Kxe7 {[%clk 0:02:26]} 17. f3 {[%clk 0:02:38]}  b5 {[%clk 0:02:25]} 18. Nb3 {[%clk 0:02:30]}  a5 {[%clk 0:02:24]} 19. Nd4 {[%clk 0:02:30]}  b4 {[%clk 0:02:20]} 20. Rd2 {[%clk 0:02:28]}  a4 {[%clk 0:02:19]} 21. Nxc6+ {[%clk 0:02:17]}  Rxc6 {[%clk 0:02:19]} 22. Red1 {[%clk 0:02:18]}  g5 {[%clk 0:02:11]} 23. Be1 {[%clk 0:02:13]}  e5 {[%clk 0:02:10]} 24. Rd3 {[%clk 0:01:58]}  Rb8 {[%clk 0:02:10]} 25. a3 {[%clk 0:01:54]}  b3 {[%clk 0:02:06]} 26. cxb3 {[%clk 0:01:47]}  Rxb3 {[%clk 0:02:05]} 27. Rxb3 {[%clk 0:01:44]}  axb3 {[%clk 0:02:06]} 28. Bb4 {[%clk 0:01:44]}  Ke6 {[%clk 0:01:51]} 29. Rd3 {[%clk 0:01:41]}  Nh5 {[%clk 0:01:19]} 30. g3 {[%clk 0:01:20]}  g4 {[%clk 0:01:16]} 31. Rxb3 {[%clk 0:01:15]}  gxf3 {[%clk 0:01:12]} 32. Rxf3 {[%clk 0:01:15]}  Nf6 {[%clk 0:01:13]} 33. Re3 {[%clk 0:01:11]}  Rc4 {[%clk 0:01:11]} 34. b3 {[%clk 0:00:50]}  Rxe4 {[%clk 0:01:11]} 35. Rd3 {[%clk 0:00:46]}  d5 {[%clk 0:01:10]} 36. Bd2 {[%clk 0:00:43]}  Re2 {[%clk 0:01:07]} 37. h3 {[%clk 0:00:36]}  e4 {[%clk 0:01:06]} 38. Rd4 {[%clk 0:00:36]}  e3 {[%clk 0:01:04]} 39. Bc3 {[%clk 0:00:30]}  Ne4 {[%clk 0:01:03]} 40. Bb4 {[%clk 0:00:23]}  Nxg3 {[%clk 0:01:02]} 41. a4 {[%clk 0:00:22]}  Nf5 {[%clk 0:01:00]} 42. Rd1 {[%clk 0:00:19]}  d4 {[%clk 0:00:54]} 43. a5 {[%clk 0:00:19]}  Rg2 {[%clk 0:00:52]} 44. a6 {[%clk 0:00:18]}  Rg8 {[%clk 0:00:47]} 45. Bc5 {[%clk 0:00:14]}  Kd5 {[%clk 0:00:46]} 46. Bb6 {[%clk 0:00:13]}  Ke4 {[%clk 0:00:44]} 47. a7 {[%clk 0:00:12]}  d3 {[%clk 0:00:42]} 48. Bc7 {[%clk 0:00:09]}  Ra8 {[%clk 0:00:41]} 49. Bb8 {[%clk 0:00:09]}  e2 {[%clk 0:00:37]} 50. Rh1 {[%clk 0:00:09]}  d2 {[%clk 0:00:35]} 51. Kc2 {[%clk 0:00:00]}  e1=Q {[%clk 0:00:35]} 0-1


[Site "https://www.chess.com"]

[Event "Titled Tuesday Blitz October 31 Early 2023"]
[White "Sadykov, Ramil"]
[Black "Bilan, Danila"]
[WhiteFideId "24113590"]
[BlackFideId "24161918"]
[WhiteElo "2664"]
[BlackElo "2496"]
[Result "1-0"]
[Round "8"]
[TimeControl "180+1"]
[Date "2023.10.31"]
[WhiteClock "0:01:24"]
[BlackClock "0:00:00"]
[Board "61"]

1. d4 {[%clk 0:03:00]}  d5 {[%clk 0:03:00]} 2. Bf4 {[%clk 0:03:00]}  Nf6 {[%clk 0:03:00]} 3. Nc3 {[%clk 0:03:00]}  e6 {[%clk 0:02:56]} 4. e3 {[%clk 0:03:00]}  Bd6 {[%clk 0:02:55]} 5. Qf3 {[%clk 0:03:00]}  Bxf4 {[%clk 0:02:51]} 6. Qxf4 {[%clk 0:03:01]}  a6 {[%clk 0:02:43]} 7. g4 {[%clk 0:02:59]}  Nfd7 {[%clk 0:02:34]} 8. Nf3 {[%clk 0:02:56]}  c5 {[%clk 0:02:32]} 9. g5 {[%clk 0:02:49]}  Nc6 {[%clk 0:02:24]} 10. h4 {[%clk 0:02:47]}  b5 {[%clk 0:02:15]} 11. Bh3 {[%clk 0:02:42]}  b4 {[%clk 0:01:56]} 12. Na4 {[%clk 0:02:29]}  cxd4 {[%clk 0:01:36]} 13. exd4 {[%clk 0:02:30]}  Ne7 {[%clk 0:01:01]} 14. h5 {[%clk 0:02:24]}  g6 {[%clk 0:00:51]} 15. Ne5 {[%clk 0:02:06]}  Nf5 {[%clk 0:00:34]} 16. Nc6 {[%clk 0:01:57]}  e5 {[%clk 0:00:14]} 17. dxe5 {[%clk 0:01:55]}  Qc7 {[%clk 0:00:08]} 18. Nxb4 {[%clk 0:01:39]}  O-O {[%clk 0:00:04]} 19. Nxd5 {[%clk 0:01:34]}  Qa5+ {[%clk 0:00:02]} 20. Nac3 {[%clk 0:01:33]}  Bb7 {[%clk 0:00:02]} 21. O-O-O {[%clk 0:01:28]}  Bxd5 {[%clk 0:00:02]} 22. Rxd5 {[%clk 0:01:27]}  Qc7 {[%clk 0:00:02]} 23. Bxf5 {[%clk 0:01:27]}  gxf5 {[%clk 0:00:02]} 24. Qxf5 {[%clk 0:01:27]}  Nb6 {[%clk 0:00:03]} 25. h6 {[%clk 0:01:23]}  Nxd5 {[%clk 0:00:00]} 26. Nxd5 {[%clk 0:01:24]} 1-0


[Site "https://www.chess.com"]

[Event "Titled Tuesday Blitz October 31 Early 2023"]
[White "Santos Flores, Alberto"]
[Black "Volkov, Maksim"]
[WhiteFideId "3601234"]
[BlackFideId "54123070"]
[WhiteElo "2462"]
[BlackElo "2652"]
[Result "1-0"]
[Round "8"]
[TimeControl "180+1"]
[Date "2023.10.31"]
[WhiteClock "0:00:42"]
[BlackClock "0:00:00"]
[Board "65"]

1. e4 {[%clk 0:03:00]}  e6 {[%clk 0:02:56]} 2. d4 {[%clk 0:03:00]}  d5 {[%clk 0:02:56]} 3. Nc3 {[%clk 0:03:00]}  Bb4 {[%clk 0:02:56]} 4. e5 {[%clk 0:03:00]}  c5 {[%clk 0:02:57]} 5. a3 {[%clk 0:03:01]}  Bxc3+ {[%clk 0:02:57]} 6. bxc3 {[%clk 0:03:01]}  Qa5 {[%clk 0:02:57]} 7. Qd2 {[%clk 0:02:56]}  Nc6 {[%clk 0:02:53]} 8. Nf3 {[%clk 0:02:54]}  Nge7 {[%clk 0:02:49]} 9. a4 {[%clk 0:02:53]}  b6 {[%clk 0:02:48]} 10. Bd3 {[%clk 0:02:37]}  Ba6 {[%clk 0:02:43]} 11. O-O {[%clk 0:02:34]}  Bxd3 {[%clk 0:02:42]} 12. Qxd3 {[%clk 0:02:33]}  Rc8 {[%clk 0:02:33]} 13. Bd2 {[%clk 0:02:30]}  c4 {[%clk 0:02:29]} 14. Qe3 {[%clk 0:02:29]}  Kd7 {[%clk 0:02:29]} 15. Ng5 {[%clk 0:02:22]}  Rcf8 {[%clk 0:02:28]} 16. g4 {[%clk 0:02:15]}  h6 {[%clk 0:02:19]} 17. Nf3 {[%clk 0:02:10]}  h5 {[%clk 0:02:19]} 18. h3 {[%clk 0:02:09]}  Ng6 {[%clk 0:02:01]} 19. Ng5 {[%clk 0:02:06]}  hxg4 {[%clk 0:01:55]} 20. hxg4 {[%clk 0:02:06]}  Rh4 {[%clk 0:01:56]} 21. Qg3 {[%clk 0:01:56]}  Rfh8 {[%clk 0:01:47]} 22. Nxf7 {[%clk 0:01:44]}  Rh1+ {[%clk 0:01:11]} 23. Kg2 {[%clk 0:01:44]}  R1h2+ {[%clk 0:01:12]} 24. Qxh2 {[%clk 0:01:36]}  Rxh2+ {[%clk 0:01:12]} 25. Kxh2 {[%clk 0:01:37]}  Nxd4 {[%clk 0:01:13]} 26. f4 {[%clk 0:01:00]}  Nc6 {[%clk 0:00:52]} 27. Nd6 {[%clk 0:00:57]}  d4 {[%clk 0:00:00]} 28. Rad1 {[%clk 0:00:42]} 1-0


[Site "https://www.chess.com"]

[Event "Titled Tuesday Blitz October 31 Early 2023"]
[White "Haitin, Ilja"]
[Black "Skliarov, Viktor"]
[WhiteFideId "4501764"]
[BlackFideId "14106736"]
[WhiteElo "2420"]
[BlackElo "2633"]
[Result "0-1"]
[Round "8"]
[TimeControl "180+1"]
[Date "2023.10.31"]
[WhiteClock "0:00:00"]
[BlackClock "0:00:03"]
[Board "67"]

1. Nf3 {[%clk 0:03:00]}  g6 {[%clk 0:02:59]} 2. d4 {[%clk 0:02:50]}  Bg7 {[%clk 0:02:59]} 3. e4 {[%clk 0:02:48]}  c5 {[%clk 0:02:55]} 4. dxc5 {[%clk 0:02:47]}  Qa5+ {[%clk 0:02:53]} 5. c3 {[%clk 0:02:47]}  Qxc5 {[%clk 0:02:49]} 6. Na3 {[%clk 0:02:47]}  Nf6 {[%clk 0:02:45]} 7. Nb5 {[%clk 0:02:37]}  Ng4 {[%clk 0:02:16]} 8. Nfd4 {[%clk 0:02:24]}  d6 {[%clk 0:01:46]} 9. Be2 {[%clk 0:02:00]}  a6 {[%clk 0:01:02]} 10. b4 {[%clk 0:01:41]}  Nxf2 {[%clk 0:00:37]} 11. bxc5 {[%clk 0:01:23]}  Nxd1 {[%clk 0:00:37]} 12. Nc7+ {[%clk 0:00:51]}  Kd8 {[%clk 0:00:37]} 13. Nxa8 {[%clk 0:00:52]}  Nxc3 {[%clk 0:00:36]} 14. Be3 {[%clk 0:00:46]}  Nxe2 {[%clk 0:00:21]} 15. Kxe2 {[%clk 0:00:44]}  dxc5 {[%clk 0:00:22]} 16. Rad1 {[%clk 0:00:17]}  cxd4 {[%clk 0:00:21]} 17. Bxd4 {[%clk 0:00:18]}  Bg4+ {[%clk 0:00:21]} 18. Ke3 {[%clk 0:00:16]}  Bxd1 {[%clk 0:00:04]} 19. Bxg7 {[%clk 0:00:16]}  Rg8 {[%clk 0:00:05]} 20. Rxd1+ {[%clk 0:00:15]}  Kc8 {[%clk 0:00:05]} 21. Be5 {[%clk 0:00:05]}  Nd7 {[%clk 0:00:05]} 22. Bg3 {[%clk 0:00:04]}  e5 {[%clk 0:00:06]} 23. Rc1+ {[%clk 0:00:04]}  Kb8 {[%clk 0:00:05]} 24. Rd1 {[%clk 0:00:00]}  Kc8 {[%clk 0:00:03]} 0-1


[Site "https://www.chess.com"]

[Event "Titled Tuesday Blitz October 31 Early 2023"]
[White "Kuzhylnyi, Oleksandr"]
[Black "La Villa Rivas, Marlon Javier"]
[WhiteFideId "34110500"]
[BlackFideId "3519546"]
[WhiteElo "2631"]
[BlackElo "2417"]
[Result "1-0"]
[Round "8"]
[TimeControl "180+1"]
[Date "2023.10.31"]
[WhiteClock "0:00:47"]
[BlackClock "0:00:45"]
[Board "68"]

1. b3 {[%clk 0:03:00]}  e5 {[%clk 0:02:55]} 2. Bb2 {[%clk 0:03:01]}  Nc6 {[%clk 0:02:56]} 3. e3 {[%clk 0:03:00]}  Nf6 {[%clk 0:02:54]} 4. Bb5 {[%clk 0:03:00]}  d6 {[%clk 0:02:52]} 5. Nf3 {[%clk 0:02:55]}  Be7 {[%clk 0:02:50]} 6. d4 {[%clk 0:02:54]}  exd4 {[%clk 0:02:49]} 7. Nxd4 {[%clk 0:02:55]}  Bd7 {[%clk 0:02:48]} 8. Nxc6 {[%clk 0:02:53]}  bxc6 {[%clk 0:02:47]} 9. Be2 {[%clk 0:02:53]}  O-O {[%clk 0:02:44]} 10. O-O {[%clk 0:02:53]}  a5 {[%clk 0:02:42]} 11. Nc3 {[%clk 0:02:47]}  c5 {[%clk 0:02:30]} 12. Bf3 {[%clk 0:02:47]}  Rb8 {[%clk 0:02:28]} 13. a4 {[%clk 0:02:47]}  c4 {[%clk 0:02:26]} 14. Rb1 {[%clk 0:02:43]}  cxb3 {[%clk 0:02:26]} 15. cxb3 {[%clk 0:02:44]}  Be6 {[%clk 0:02:25]} 16. Nd5 {[%clk 0:02:42]}  Nxd5 {[%clk 0:02:22]} 17. Bxd5 {[%clk 0:02:43]}  Bf5 {[%clk 0:02:21]} 18. e4 {[%clk 0:02:40]}  Bg6 {[%clk 0:02:21]} 19. Bc3 {[%clk 0:02:35]}  Bf6 {[%clk 0:02:17]} 20. Bxa5 {[%clk 0:02:33]}  Be5 {[%clk 0:02:17]} 21. f4 {[%clk 0:02:31]}  Bf6 {[%clk 0:02:13]} 22. f5 {[%clk 0:02:31]}  Be5 {[%clk 0:01:53]} 23. fxg6 {[%clk 0:02:26]}  Qh4 {[%clk 0:01:53]} 24. gxf7+ {[%clk 0:01:54]}  Kh8 {[%clk 0:01:51]} 25. g3 {[%clk 0:01:47]}  Bxg3 {[%clk 0:01:50]} 26. Qe2 {[%clk 0:01:47]}  Be5 {[%clk 0:01:48]} 27. Be1 {[%clk 0:01:42]}  Qg5+ {[%clk 0:01:43]} 28. Qg2 {[%clk 0:01:40]}  Qe3+ {[%clk 0:01:43]} 29. Bf2 {[%clk 0:01:41]}  Qf4 {[%clk 0:01:42]} 30. Kh1 {[%clk 0:01:36]}  c6 {[%clk 0:01:39]} 31. Bg3 {[%clk 0:01:33]}  Qh6 {[%clk 0:01:27]} 32. Bxe5 {[%clk 0:01:33]}  cxd5 {[%clk 0:01:27]} 33. Bd4 {[%clk 0:01:21]}  dxe4 {[%clk 0:01:26]} 34. Rf5 {[%clk 0:01:04]}  Rb4 {[%clk 0:00:51]} 35. Bc3 {[%clk 0:00:55]}  Rxb3 {[%clk 0:00:48]} 36. Rxb3 {[%clk 0:00:48]}  Qc1+ {[%clk 0:00:45]} 37. Rf1 {[%clk 0:00:47]} 1-0


[Site "https://www.chess.com"]